fUSD/lending_fUSD_20250606
["ID","MTS","AMOUNT","RATE_DAILY","PERIOD"]
[364728174,1749220287481,-480.0,0.00030986,7]
[364728175,1749220287491,-480.0,0.00030986,7]
[364728176,1749220287500,-480.0,0.00030986,7]
[364728177,1749220287510,-1792.16,0.00030986,7]
[364728178,1749220287519,-862.41,0.00030986,7]
[364728179,1749220287529,-490.39,0.00030986,7]
[364728180,1749220287539,-480.0,0.00030986,7]
[364728181,1749220287548,-480.0,0.00030986,7]
[364728182,1749220287558,-1262.12,0.00030986,7]
[364728183,1749220287568,-480.0,0.00030986,7]
[364728184,1749220287578,-1912.2,0.00030986,7]
[364728185,1749220287587,-480.0,0.00030986,7]
[364728186,1749220287597,-480.0,0.00030986,7]
[364728187,1749220287607,-480.0,0.00030986,7]
[364728188,1749220287617,-480.0,0.00030986,7]
[364728189,1749220287627,-789.07,0.00030986,7]
[364728190,1749220287636,-480.0,0.00030986,7]
[364728191,1749220287647,-623.18,0.00030986,7]
[364728192,1749220287656,-480.0,0.00030986,7]
[364728193,1749220287666,-486.86,0.00030986,7]
[364728194,1749220287677,-480.0,0.00030986,7]
[364728195,1749220287688,-1009.26,0.00030986,7]
[364728196,1749220287697,-480.0,0.00030986,7]
[364728197,1749220287707,-1163.93,0.00030986,7]
[364728198,1749220287718,-1438.84,0.00030986,7]
[364728199,1749220287728,-207.46247466,0.00030986,7]
[364728200,1749220287738,-480.0,0.00030986,7]
[364728201,1749220287748,-597.43,0.00030986,7]
[364728202,1749220287758,-480.0,0.00030986,7]
[364728203,1749220287768,-480.0,0.00030986,7]
[364728204,1749220287779,-1570.73,0.00030986,7]
[364728205,1749220287789,-480.0,0.00030986,7]
[364728206,1749220287801,-480.0,0.00030986,7]
[364728207,1749220287811,-480.0,0.00030986,7]
[364728208,1749220287820,-528.17,0.00030986,7]
[364728209,1749220287829,-761.22,0.00030986,7]
[364728210,1749220287839,-480.0,0.00030986,7]
[364728211,1749220287848,-480.0,0.00030986,7]
[364728212,1749220287857,-1220.04,0.00030986,7]
[364728213,1749220287867,-480.0,0.00030986,7]
[364728214,1749220287876,-1362.42,0.00030986,7]
[364728215,1749220287885,-480.0,0.00030986,7]
[364728216,1749220287895,-480.0,0.00030986,7]
[364728217,1749220287904,-480.0,0.00030986,7]
[364728218,1749220287914,-1189.05,0.00030986,7]
[364728219,1749220287923,-480.0,0.00030986,7]
[364728220,1749220287933,-480.0,0.00030986,7]
[364728221,1749220287942,-985.5,0.00030986,7]
[364728222,1749220287953,-820.31,0.00030986,7]
[364728223,1749220287963,-572.01,0.00030986,7]
[364728224,1749220287974,-1807.04,0.00030986,7]
[364728225,1749220287984,-1262.79,0.00030986,7]
[364728226,1749220287995,-2516.73,0.00030986,7]
[364728227,1749220288005,-480.0,0.00030986,7]
[364728228,1749220288015,-778.34,0.00030986,7]
[364728229,1749220288024,-480.0,0.00030986,7]
[364728230,1749220288035,-839.08,0.00030986,7]
[364728231,1749220288044,-11285.31,0.00030986,7]
[364728232,1749220288054,-1101.15,0.00030986,7]
[364728233,1749220288064,-480.0,0.00030986,7]
[364728234,1749220288074,-3214.08,0.00030986,7]
[364728235,1749220288084,-480.0,0.00030986,7]
[364728236,1749220288093,-480.0,0.00030986,7]
[364728237,1749220288103,-2964.96,0.00030986,7]
[364728238,1749220288114,-873.96,0.00030986,7]
[364728239,1749220288124,-4607.18,0.00030986,7]
[364728240,1749220288134,-480.0,0.00030986,7]
[364728241,1749220288145,-20710.06,0.00030986,7]
[364728242,1749220288155,-480.0,0.00030986,7]
[364728243,1749220288165,-480.0,0.00030986,7]
[364728244,1749220288175,-1067.02,0.00030986,7]
[364728245,1749220288185,-480.0,0.00030986,7]
[364728246,1749220288195,-612.42,0.00030986,7]
[364728247,1749220288205,-3585.66,0.00030986,7]
[364728248,1749220288215,-480.0,0.00030986,7]
[364728249,1749220288224,-1186.93,0.00030986,7]
[364728250,1749220288234,-480.0,0.00030986,7]
[364728251,1749220288244,-1255.39,0.00030986,7]
[364728252,1749220288253,-2364.45,0.00030986,7]
[364728253,1749220288263,-1399.55,0.00030986,7]
[364728254,1749220288272,-491.87,0.00030986,7]
[364728255,1749220288283,-825.25,0.00030986,7]
[364728256,1749220288293,-1108.3,0.00030986,7]
[364728257,1749220288303,-726.54,0.00030986,7]
[364728258,1749220288313,-480.0,0.00030986,7]
[364728259,1749220288323,-2028.66,0.00030986,7]
[364728260,1749220288332,-1692.8,0.00030986,7]
[364728261,1749220288342,-781.47,0.00030986,7]
[364728262,1749220288352,-1466.18,0.00030986,7]
[364728263,1749220288362,-73191.22,0.00030986,7]
[364728264,1749220288371,-1031.1,0.00030986,7]
[364728265,1749220288382,-2308.95,0.00030986,7]
[364728266,1749220288394,-1187.36,0.00030986,7]
[364728267,1749220288405,-1402.86,0.00030986,7]
[364728268,1749220288415,-1807.35,0.00030986,7]
[364728269,1749220288424,-1648.94,0.00030986,7]
[364728270,1749220288435,-1912.7,0.00030986,7]
[364728271,1749220288444,-4297.8,0.00030986,7]
[364728272,1749220288454,-1127.05,0.00030986,7]
[364728273,1749220288466,-480.0,0.00030986,7]
[364728274,1749220288476,-1433.3,0.00030986,7]
[364728275,1749220288485,-793.28,0.00030986,7]
[364728276,1749220288494,-480.0,0.00030986,7]
[364728277,1749220288503,-845.41,0.00030986,7]
[364728278,1749220288513,-1143.75,0.00030986,7]
[364728279,1749220288523,-542.34,0.00030986,7]
[364728280,1749220288532,-4339.46,0.00030986,7]
[364728281,1749220288541,-550.99,0.00030986,7]
[364728282,1749220288551,-556.78642225,0.00030986,7]
[364728283,1749220288560,-480.0,0.00030986,7]
[364728284,1749220288570,-480.0,0.00030986,7]
[364728285,1749220288582,-558.97,0.00030986,7]
[364728286,1749220288593,-705.32,0.00030986,7]
[364728287,1749220288603,-638.49,0.00030986,7]
[364728288,1749220288613,-646.01,0.00030986,7]
[364728289,1749220288624,-480.0,0.00030986,7]
[364728290,1749220288634,-5821.7,0.00030986,7]
[364728291,1749220288644,-480.0,0.00030986,7]
[364728292,1749220288654,-1415.28,0.00030986,7]
[364728293,1749220288663,-480.0,0.00030986,7]
[364728294,1749220288673,-480.0,0.00030986,7]
[364728295,1749220288683,-2997.28,0.00030986,7]
[364728296,1749220288692,-2219.2,0.00030986,7]
[364728297,1749220288701,-4881.17,0.00030986,7]
[364728298,1749220288710,-1494.8,0.00030986,7]
[364728299,1749220288721,-480.0,0.00030986,7]
[364728300,1749220288730,-480.0,0.00030986,7]
[364728301,1749220288739,-761.61,0.00030986,7]
[364728302,1749220288749,-2109.18,0.00030986,7]
[364728303,1749220288758,-1044.45,0.00030986,7]
[364728304,1749220288768,-480.0,0.00030986,7]
[364728305,1749220288777,-617.24,0.00030986,7]
[364728306,1749220288786,-1804.22,0.00030986,7]
[364728307,1749220288796,-6318.65,0.00030986,7]
[364728308,1749220288805,-776.29,0.00030986,7]
[364728309,1749220288816,-5806.79,0.00030986,7]
[364728310,1749220288826,-480.0,0.00030986,7]
[364728311,1749220288837,-902.05,0.00030986,7]
[364728312,1749220288846,-480.0,0.00030986,7]
[364728313,1749220288857,-677.86,0.00030986,7]
[364728314,1749220288866,-17052.87,0.00030986,7]
[364728315,1749220288876,-1448.58,0.00030986,7]
[364728316,1749220288885,-480.0,0.00030986,7]
[364728317,1749220288894,-480.0,0.00030986,7]
[364728318,1749220288903,-1087.78,0.00030986,7]
[364728319,1749220288912,-596.02,0.00030986,7]
[364728320,1749220288921,-1086.7,0.00030986,7]
[364728321,1749220288931,-1926.02,0.00030986,7]
[364728322,1749220288940,-1310.18,0.00030986,7]
[364728323,1749220288950,-480.01,0.00030986,7]
[364728324,1749220288960,-971.77,0.00030986,7]
[364728325,1749220288971,-2065.59,0.00030986,7]
[364728326,1749220288979,-500.0,0.00030986,7]
[364728327,1749220288989,-13307.39,0.00030986,7]
[364728328,1749220288999,-2324.9,0.00030986,7]
[364728329,1749220289008,-824.21,0.00030986,7]
[364728330,1749220289017,-480.0,0.00030986,7]
[364728331,1749220289026,-2178.92,0.00030986,7]
[364728332,1749220289035,-3945.0,0.00030986,7]
[364728333,1749220289044,-480.0,0.00030986,7]
[364728334,1749220289054,-4149.78,0.00030986,7]
[364728335,1749220289063,-3813.84,0.00030986,7]
[364728336,1749220289072,-1365.76,0.00030986,7]
[364728337,1749220289081,-984.68,0.00030986,7]
[364728338,1749220289090,-904.26,0.00030986,7]
[364728339,1749220289099,-480.0,0.00030986,7]
[364728340,1749220289108,-480.0,0.00030986,7]
[364728341,1749220289118,-4903.83,0.00030986,7]
[364728342,1749220289127,-1112.93,0.00030986,7]
[364728343,1749220289136,-813.56,0.00030986,7]
[364728344,1749220289145,-1976.97,0.00030986,7]
[364728345,1749220289154,-3642.55,0.00030986,7]
[364728346,1749220289163,-2033.72,0.00030986,7]
[364728347,1749220289172,-1600.26,0.00030986,7]
[364728348,1749220289182,-878.97,0.00030986,7]
[364728349,1749220289191,-480.0,0.00030986,7]
[364728350,1749220289200,-480.0,0.00030986,7]
[364728351,1749220289209,-480.0,0.00030986,7]
[364728352,1749220289218,-948.36,0.00030986,7]
[364728353,1749220289228,-10382.45,0.00030986,7]
[364728354,1749220289237,-520.79,0.00030986,7]
[364728355,1749220289247,-480.0,0.00030986,7]
[364728356,1749220289256,-1399.06,0.00030986,2]
[364728357,1749220289265,-3570.9,0.00030986,7]
[364728358,1749220289274,-875.0,0.00030986,7]
[364728359,1749220289283,-1610.11,0.00030986,7]
[364728360,1749220289292,-506.97,0.00030986,7]
[364728361,1749220289302,-582.82,0.00030986,7]
[364728362,1749220289312,-1069.2,0.00030986,7]
[364728363,1749220289322,-5037.96,0.00030986,7]
[364728364,1749220289331,-1221.01,0.00030986,7]
[364728365,1749220289340,-2746.68,0.00030986,7]
[364728366,1749220289350,-1159.49,0.00030986,7]
[364728367,1749220289359,-1726.11,0.00030986,7]
[364728368,1749220289368,-480.0,0.00030986,7]
[364728369,1749220289379,-4017.92,0.00030986,7]
[364728370,1749220289391,-4678.49,0.00030986,7]
[364728371,1749220289400,-1324.34,0.00030986,7]
[364728372,1749220289409,-480.0,0.00030986,7]
[364728373,1749220289420,-576.09,0.00030986,7]
[364728374,1749220289430,-619.71,0.00030986,7]
[364728375,1749220289440,-1000.0,0.00030986,7]
[364728376,1749220289449,-1223.35,0.00030986,7]
[364728377,1749220289459,-480.0,0.00030986,7]
[364728378,1749220289469,-480.0,0.00030986,7]
[364728379,1749220289478,-480.0,0.00030986,7]
[364728380,1749220289487,-480.0,0.00030986,7]
[364728381,1749220289496,-2298.56,0.00030986,7]
[364728382,1749220289506,-1792.53,0.00030986,7]
[364728383,1749220289516,-783.46,0.00030986,7]
[364728384,1749220289526,-488.06,0.00030986,7]
[364728385,1749220289536,-480.0,0.00030986,7]
[364728386,1749220289546,-480.0,0.00030986,7]
[364728387,1749220289555,-4227.26,0.00030986,7]
[364728388,1749220289564,-4126.83,0.00030986,7]
[364728389,1749220289573,-985.6,0.00030986,7]
[364728390,1749220289583,-558.35,0.00030986,7]
[364728391,1749220289592,-480.0,0.00030986,7]
[364728392,1749220289602,-1349.15,0.00030986,7]
[364728393,1749220289611,-480.0,0.00030986,7]
[364728394,1749220289620,-538.71418087,0.00030986,7]
[364728395,1749220289629,-946.38,0.00030986,7]
[364728396,1749220289639,-480.0,0.00030986,7]
[364728397,1749220289648,-1957.15,0.00030986,7]
[364728398,1749220289658,-1972.33,0.00030986,7]
[364728399,1749220289667,-869.99,0.00030986,7]
[364728400,1749220289676,-667.66,0.00030986,7]
[364728401,1749220289687,-788.43,0.00030986,7]
[364728402,1749220289696,-480.0,0.00030986,7]
[364728403,1749220289706,-752.97,0.00030986,7]
[364728404,1749220289716,-475.97098415,0.00030986,7]
[364728405,1749220289726,-2371.57,0.00030986,7]
[364728406,1749220289737,-480.0,0.00030986,7]
[364728407,1749220289748,-480.0,0.00030986,7]
[364728408,1749220289758,-601.08,0.00030986,7]
[364728409,1749220289927,-480.0,0.00030986,7]
[364728410,1749220289938,-2258.41,0.00030986,7]
[364728411,1749220289948,-480.0,0.00030986,7]
[364728412,1749220289958,-480.0,0.00030986,7]
[364728413,1749220289968,-617.19,0.00030986,7]
[364728414,1749220289979,-957.11,0.00030986,7]
[364728415,1749220289990,-661.16,0.00030986,7]
[364728416,1749220290000,-15596.64,0.00030986,7]
[364728417,1749220290010,-1003.28,0.00030986,7]
[364728418,1749220290020,-1277.26,0.00030986,7]
[364728419,1749220290030,-846.81,0.00030986,7]
[364728420,1749220290040,-1738.04,0.00030986,7]
[364728421,1749220290050,-480.0,0.00030986,7]
[364728422,1749220290060,-2129.46,0.00030986,7]
[364728423,1749220290072,-820.16,0.00030986,7]
[364728424,1749220290081,-1214.21,0.00030986,7]
[364728425,1749220290090,-480.0,0.00030986,7]
[364728426,1749220290099,-2196.5,0.00030986,7]
[364728427,1749220290109,-923.4,0.00030986,7]
[364728428,1749220290118,-2461.07,0.00030986,7]
[364728429,1749220290127,-2342.28,0.00030986,7]
[364728430,1749220290137,-2121.81,0.00030986,7]
[364728431,1749220290147,-1254.9,0.00030986,7]
[364728432,1749220290156,-480.0,0.00030986,7]
[364728433,1749220290166,-1793.96,0.00030986,7]
[364728434,1749220290176,-896.54,0.00030986,7]
[364728435,1749220290187,-2687.86,0.00030986,7]
[364728436,1749220290197,-480.0,0.00030986,7]
[364728437,1749220290207,-979.7,0.00030986,7]
[364728438,1749220290217,-480.0,0.00030986,7]
[364728439,1749220290226,-761.13,0.00030986,2]
[364728440,1749220290236,-820.24,0.00030986,7]
[364728441,1749220290245,-873.83,0.00030986,7]
[364728442,1749220290255,-1677.25,0.00030986,7]
[364728443,1749220290264,-1293.09,0.00030986,7]
[364728444,1749220290274,-529.01,0.00030986,7]
[364728445,1749220290283,-1068.09,0.00030986,7]
[364728446,1749220290292,-787.96,0.00030986,7]
[364728447,1749220290301,-480.0,0.00030986,7]
[364728448,1749220290310,-1242.86,0.00030986,7]
[364728449,1749220290320,-11034.26,0.00030986,7]
[364728450,1749220290329,-480.0,0.00030986,7]
[364728451,1749220290339,-564.91,0.00030986,7]
[364728452,1749220290349,-480.0,0.00030986,7]
[364728453,1749220290359,-937.81,0.00030986,2]
[364728454,1749220290369,-480.0,0.00030986,7]
[364728455,1749220290379,-480.0,0.00030986,7]
[364728456,1749220290392,-671.61,0.00030986,7]
[364728457,1749220290402,-699.69,0.00030986,7]
[364728458,1749220290411,-2147.96,0.00030986,7]
[364728459,1749220290422,-569.84,0.00030986,7]
[364728460,1749220290431,-806.66,0.00030986,7]
[364728461,1749220290442,-1417.78,0.00030986,7]
[364728462,1749220290451,-720.25,0.00030986,7]
[364728463,1749220290463,-1409.97,0.00030986,7]
[364728464,1749220290475,-480.0,0.00030986,7]
[364728465,1749220290484,-1915.93,0.00030986,7]
[364728466,1749220290493,-1184.01,0.00030986,7]
[364728467,1749220290503,-1233.97,0.00030986,7]
[364728468,1749220290512,-546.00460795,0.00030986,7]
[364728469,1749220290521,-480.0,0.00030986,7]
[364728470,1749220290532,-480.0,0.00030986,7]
[364728471,1749220290541,-480.0,0.00030986,7]
[364728472,1749220290551,-480.0,0.00030986,7]
[364728473,1749220290560,-480.0,0.00030986,7]
[364728474,1749220290571,-428.0,0.00030986,2]
[364728475,1749220290580,-927.0,0.00030986,7]
[364728476,1749220290590,-646.0,0.00030986,7]
[364728477,1749220290600,-239.4279877,0.00030987,7]
[364728478,1749220290610,-186.88884126,0.00030987,7]
[364728479,1749220290621,-150.0,0.0003099,7]
[364728480,1749220290630,-150.0,0.0003099,7]
[364728481,1749220290640,-150.0,0.0003099,7]
[364728482,1749220290650,-150.0,0.0003099,7]
[364728483,1749220290660,-50000.0,0.00031,22]
[364728484,1749220290671,-1800.0,0.00031,32]
[364728485,1749220290681,-150.0,0.00031,30]
[364728486,1749220290692,-800.0,0.00031,4]
[364728487,1749220290702,-17504.0,0.00031,2]
[364728488,1749220290711,-146941.48318767,0.00031,2]
[364728489,1749220290721,-239.4279877,0.00031,7]
[364728490,1749220290730,-186.88884126,0.00031,7]
[364728491,1749220290740,-369.0993469,0.00031,2]
[364728492,1749220290750,-1005.68853577,0.00031003,24]
[364728493,1749220290759,-150.0,0.00031006,7]
[364728494,1749220290771,-150.0,0.00031011,7]
[364728495,1749220290781,-150.0,0.00031011,7]
[364728496,1749220290790,-150.0,0.00031012,7]
[364728497,1749220290799,-239.4279877,0.00031013,7]
[364728498,1749220290809,-186.88884126,0.00031013,7]
[364728499,1749220290819,-428.0,0.00031014,2]
[364728500,1749220290829,-927.0,0.00031014,7]
[364728501,1749220290839,-646.0,0.00031014,7]
[364728502,1749220290849,-2000.0,0.00031016,5]
[364728503,1749220290860,-2000.0,0.00031016,5]
[364728504,1749220290869,-206.07349728,0.00031016,5]
[364728505,1749220290878,-2017.77364325,0.00031016,5]
[364728506,1749220290888,-239.4279877,0.00031027,7]
[364728507,1749220290897,-186.88884126,0.00031027,7]
[364728508,1749220290907,-150.0,0.00031031,7]
[364728509,1749220290916,-150.0,0.00031034,7]
[364728510,1749220290925,-150.0,0.00031037,7]
[364728511,1749220290937,-150.0,0.00031039,7]
[364728512,1749220290946,-239.4279877,0.0003104,7]
[364728513,1749220290955,-186.88884126,0.0003104,7]
[364728514,1749220290965,-428.0,0.00031041,2]
[364728515,1749220290975,-927.0,0.00031041,7]
[364728516,1749220290984,-646.0,0.00031041,7]
[364728517,1749220290993,-150.0,0.00031042,7]
[364728518,1749220291003,-150.0,0.00031052,7]
[364728519,1749220291015,-239.4279877,0.00031053,7]
[364728520,1749220291025,-186.88884126,0.00031053,7]
[364728521,1749220291034,-150.0,0.00031056,7]
[364728522,1749220291044,-150.0,0.00031056,7]
[364728523,1749220291053,-301.69,0.00031064,2]
[364728524,1749220291063,-239.4279877,0.00031067,7]
[364728525,1749220291073,-186.88884126,0.00031067,7]
[364728526,1749220291083,-150.0,0.00031067,7]
[364728527,1749220291092,-428.0,0.00031068,2]
[364728528,1749220291102,-927.0,0.00031068,7]
[364728529,1749220291113,-646.0,0.00031068,7]
[364728530,1749220291122,-150.0,0.00031069,7]
[364728531,1749220291131,-400.0,0.0003107,2]
[364728532,1749220291142,-150.0,0.00031073,7]
[364728533,1749220291152,-150.0,0.00031078,7]
[364728534,1749220291162,-239.4279877,0.0003108,7]
[364728535,1749220291171,-186.88884126,0.0003108,7]
[364728536,1749220291181,-150.0,0.00031093,7]
[364728537,1749220291192,-239.4279877,0.00031093,7]
[364728538,1749220291201,-186.88884126,0.00031093,7]
[364728539,1749220291211,-150.0,0.00031095,7]
[364728540,1749220291221,-428.0,0.00031096,2]
[364728541,1749220291231,-927.0,0.00031096,7]
[364728542,1749220291241,-646.0,0.00031096,7]
[364728543,1749220291250,-463.1873695,0.00031099,2]
[364728544,1749220291260,-596.23306513,0.000311,3]
[364728545,1749220291270,-150.0,0.000311,7]
[364728546,1749220291279,-150.0,0.000311,7]
[364728547,1749220291289,-150.0,0.000311,7]
[364728548,1749220291298,-150.0,0.000311,7]
[364728549,1749220291307,-239.4279877,0.00031107,7]
[364728550,1749220291317,-186.88884126,0.00031107,7]
[364728551,1749220291327,-150.0,0.00031112,7]
[364728552,1749220291336,-150.0,0.00031114,7]
[364728553,1749220291346,-239.4279877,0.0003112,7]
[364728554,1749220291356,-186.88884126,0.0003112,7]
[364728555,1749220291365,-1451.44913358,0.00031122,3]
[364728556,1749220291374,-150.0,0.00031122,7]
[364728557,1749220291388,-440.41901234,0.00031123,2]
[364728558,1749220291398,-944.32218555,0.00031123,7]
[364728559,1749220291407,-668.20410333,0.00031123,7]
[364728560,1749220291418,-150.0,0.00031123,7]
[364728561,1749220291428,-150.0,0.00031131,7]
[364728562,1749220291438,-239.4279877,0.00031133,7]
[364728563,1749220291447,-186.88884126,0.00031133,7]
[364728564,1749220291457,-150.0,0.00031134,7]
[364728565,1749220291467,-150.0,0.00031144,7]
[364728566,1749220291478,-239.4279877,0.00031147,7]
[364728567,1749220291487,-186.88884126,0.00031147,7]
[364728568,1749220291498,-2222.878919,0.0003115,7]
[364728569,1749220291509,-2069.069336,0.0003115,7]
[364728570,1749220291519,-480.0,0.0003115,7]
[364728571,1749220291531,-480.0,0.0003115,7]
[364728572,1749220291541,-617.81,0.0003115,7]
[364728573,1749220291550,-480.0,0.0003115,7]
[364728574,1749220291559,-480.0,0.0003115,7]
[364728575,1749220291568,-480.0,0.0003115,7]
[364728576,1749220291577,-480.0,0.0003115,7]
[364728577,1749220291587,-1997.23,0.0003115,7]
[364728578,1749220291596,-480.0,0.0003115,7]
[364728579,1749220291606,-847.34,0.0003115,7]
[364728580,1749220291615,-480.0,0.0003115,7]
[364728581,1749220291625,-480.0,0.0003115,7]
[364728582,1749220291635,-480.0,0.0003115,7]
[364728583,1749220291644,-480.0,0.0003115,7]
[364728584,1749220291654,-459.61181471,0.0003115,7]
[364728585,1749220291663,-480.0,0.0003115,7]
[364728586,1749220291672,-557.72,0.0003115,7]
[364728587,1749220291681,-480.0,0.0003115,7]
[364728588,1749220291691,-480.0,0.0003115,7]
[364728589,1749220291700,-681.93,0.0003115,7]
[364728590,1749220291710,-480.0,0.0003115,7]
[364728591,1749220291719,-480.0,0.0003115,7]
[364728592,1749220291729,-683.06,0.0003115,7]
[364728593,1749220291738,-480.0,0.0003115,7]
[364728594,1749220291748,-1194.15,0.0003115,7]
[364728595,1749220291758,-480.0,0.0003115,7]
[364728596,1749220291768,-480.0,0.0003115,7]
[364728597,1749220291777,-480.0,0.0003115,7]
[364728598,1749220291787,-504.02,0.0003115,7]
[364728599,1749220291796,-699.24,0.0003115,7]
[364728600,1749220291805,-331.25284483,0.0003115,7]
[364728601,1749220291815,-591.25431971,0.0003115,7]
[364728602,1749220291824,-480.0,0.0003115,7]
[364728603,1749220291834,-480.0,0.0003115,7]
[364728604,1749220291843,-480.0,0.0003115,7]
[364728605,1749220291852,-480.0,0.0003115,7]
[364728606,1749220291861,-480.0,0.0003115,7]
[364728607,1749220291870,-480.0,0.0003115,7]
[364728608,1749220291880,-819.51,0.0003115,7]
[364728609,1749220291890,-480.0,0.0003115,7]
[364728610,1749220291900,-480.0,0.0003115,7]
[364728611,1749220291909,-979.25,0.0003115,7]
[364728612,1749220291919,-613.49,0.0003115,7]
[364728613,1749220291928,-480.0,0.0003115,7]
[364728614,1749220291938,-480.0,0.0003115,7]
[364728615,1749220291948,-480.0,0.0003115,7]
[364728616,1749220291957,-1135.81,0.0003115,7]
[364728617,1749220291967,-480.0,0.0003115,7]
[364728618,1749220291976,-480.0,0.0003115,7]
[364728619,1749220291990,-504.16,0.0003115,7]
[364728620,1749220292000,-480.0,0.0003115,7]
[364728621,1749220292009,-480.0,0.0003115,7]
[364728622,1749220292018,-477.84624038,0.0003115,7]
[364728623,1749220292028,-480.0,0.0003115,7]
[364728624,1749220292037,-741.75,0.0003115,7]
[364728625,1749220292047,-480.0,0.0003115,7]
[364728626,1749220292056,-480.0,0.0003115,7]
[364728627,1749220292066,-830.77,0.0003115,7]
[364728628,1749220292076,-480.0,0.0003115,7]
[364728629,1749220292086,-480.0,0.0003115,7]
[364728630,1749220292096,-843.49,0.0003115,7]
[364728631,1749220292105,-422.92355309,0.0003115,7]
[364728632,1749220292115,-480.0,0.0003115,7]
[364728633,1749220292124,-480.0,0.0003115,7]
[364728634,1749220292134,-480.0,0.0003115,7]
[364728635,1749220292143,-480.0,0.0003115,7]
[364728636,1749220292154,-2600.34,0.0003115,7]
[364728637,1749220292163,-620.62,0.0003115,7]
[364728638,1749220292173,-1342.16,0.0003115,7]
[364728639,1749220292182,-847.94,0.0003115,7]
[364728640,1749220292197,-675.47,0.0003115,30]
[364728641,1749220292207,-507.4,0.0003115,7]
[364728642,1749220292217,-480.0,0.0003115,7]
[364728643,1749220292227,-621.25,0.0003115,7]
[364728644,1749220292237,-694.31,0.0003115,7]
[364728645,1749220292247,-480.0,0.0003115,7]
[364728646,1749220292258,-480.0,0.0003115,7]
[364728647,1749220292272,-480.0,0.0003115,7]
[364728648,1749220292283,-480.0,0.0003115,7]
[364728649,1749220292293,-480.0,0.0003115,7]
[364728650,1749220292302,-480.0,0.0003115,7]
[364728651,1749220292312,-529.44,0.0003115,7]
[364728652,1749220292322,-737.4,0.0003115,7]
[364728653,1749220292331,-480.0,0.0003115,7]
[364728654,1749220292341,-480.0,0.0003115,7]
[364728655,1749220292350,-721.19,0.0003115,7]
[364728656,1749220292359,-1441.03,0.0003115,7]
[364728657,1749220292369,-1003.2,0.0003115,7]
[364728658,1749220292378,-480.0,0.0003115,7]
[364728659,1749220292393,-480.0,0.0003115,7]
[364728660,1749220292403,-1057.7,0.0003115,7]
[364728661,1749220292413,-480.0,0.0003115,7]
[364728662,1749220292424,-729.61,0.0003115,7]
[364728663,1749220292438,-480.0,0.0003115,7]
[364728664,1749220292447,-730.84,0.0003115,7]
[364728665,1749220292457,-689.59,0.0003115,7]
[364728666,1749220292468,-480.0,0.0003115,7]
[364728667,1749220292478,-1560.79,0.0003115,7]
[364728668,1749220292487,-480.0,0.0003115,7]
[364728669,1749220292496,-1787.56,0.0003115,7]
[364728670,1749220292507,-1063.57,0.0003115,7]
[364728671,1749220292517,-775.63,0.0003115,7]
[364728672,1749220292526,-1536.34,0.0003115,7]
[364728673,1749220292537,-480.0,0.0003115,7]